fUSD/lending_fUSD_20250524
["ID","MTS","AMOUNT","RATE_DAILY","PERIOD"]
[362258836,1748122240774,-500.0,0.00019973,2]
[362258838,1748122240783,-500.0,0.00019973,2]
[362258840,1748122240792,-505.00798943,0.00019973,2]
[362258842,1748122240802,-500.0,0.00019973,2]
[362258844,1748122240811,-500.0,0.00019973,2]
[362258846,1748122240821,-1199.20597015,0.00019988,2]
[362258847,1748122240830,-151.0,0.00019988,2]
[362258849,1748122240839,-153.08,0.0001999,2]
[362258851,1748122240849,-153.08,0.0001999,2]
[362258854,1748122240859,-153.08,0.0001999,2]
[362258856,1748122240868,-153.08,0.0001999,2]
[362258858,1748122240878,-153.08,0.0001999,2]
[362258859,1748122240887,-153.08,0.0001999,2]
[362258861,1748122240897,-153.08,0.0001999,2]
[362258863,1748122240907,-153.08,0.0001999,2]
[362258865,1748122240917,-153.08,0.0001999,2]
[362258867,1748122240926,-153.08,0.0001999,2]
[362258869,1748122240936,-153.08,0.0001999,2]
[362258871,1748122240945,-153.08,0.0001999,2]
[362258874,1748122240955,-153.08,0.0001999,2]
[362258876,1748122240964,-153.08,0.0001999,2]
[362258877,1748122240974,-153.08,0.0001999,2]
[362258879,1748122240983,-158.3297441,0.0001999,2]
[362258881,1748122240992,-158.3297441,0.0001999,2]
[362258883,1748122241001,-158.3297441,0.0001999,2]
[362258885,1748122241010,-226.62,0.00019999,2]
[362258887,1748122241019,-2865.0,0.00019999,2]
[362258890,1748122241029,-387.92110119,0.0002,2]
[362258891,1748122241038,-220904.81910475,0.0002,2]
[362258895,1748122241063,-451.690005,0.0002,2]
[362258926,1748122241349,-349.90215935,0.00019178,2]
[362258928,1748122241360,-70.09784065,0.00019178,2]
[362258930,1748122241369,-420.0,0.00019205,2]
[362258932,1748122241379,-4054.0,0.00019748,2]
[362258934,1748122241389,-21926.69655633,0.000199,2]
[362258936,1748122241398,-433429.65796104,0.0002,2]
[362258938,1748122241407,-4000.0,0.0002,4]
[362258940,1748122241417,-3271.36051202,0.0002,4]
[362258942,1748122241427,-92129.27846593,0.0002,2]
[362258949,1748122241482,-693.31393579,0.0002,2]
[362258955,1748122241529,178.26682609,0.00015,2]
[362258958,1748122241550,71.73317391,0.00015,2]
[362259009,1748122242116,168.006001,0.00017,2]
[362259010,1748122242137,131.993999,0.00017,2]
[362259241,1748122247914,-78.44090019,0.00019,2]
[362259242,1748122247930,-271.55909981,0.00019,2]
[362259243,1748122247941,-420.0,0.00019232,2]
[362259244,1748122247951,-34.49342119,0.0001926,2]
[362259245,1748122248016,-420.0,0.00019178,2]
[362259246,1748122248026,-420.0,0.00019205,2]
[362259247,1748122248035,-361.92,0.00019232,2]
[362259248,1748122248045,-385.50657881,0.0001926,2]
[362259249,1748122248054,-420.0,0.00019287,2]
[362259250,1748122248063,-420.0,0.00019315,2]
[362259251,1748122248073,-420.0,0.00019342,2]
[362259252,1748122248082,-420.0,0.00019369,2]
[362259253,1748122248093,-420.0,0.00019397,2]
[362259254,1748122248103,-420.0,0.00019424,2]
[362259255,1748122248113,-547.28,0.00019452,2]
[362259256,1748122248122,-768.54542119,0.00019999,5]
[362259257,1748122248134,-303.76077074,0.00019999,5]
[362259258,1748122248144,-1072.30619193,0.00019999,5]
[362259259,1748122248153,-41.32953554,0.0002,2]
[362259260,1748122248164,-1069.63800176,0.0002,2]
[362259261,1748122248176,-5968.0621,0.0002,2]
[362259262,1748122248187,-1289.74182713,0.0002,2]
[362259263,1748122248366,-1871.70869139,0.0002,2]
[362259264,1748122248380,-5681.97039524,0.0002,2]
[362259266,1748122782000,465.7,0.00025284,120]
[362259267,1748122922196,-168.006001,0.00018285,2]
[362259268,1748122922218,-166.68713836,0.00018288,2]
[362259269,1748122922239,-1090.81,0.00018289,2]
[362259270,1748122922260,-255.75,0.00018378,2]
[362259271,1748122922282,-300.0,0.00018387,2]
[362259272,1748122922304,-8018.74686064,0.00018388,2]
[362259273,1748122923096,-300.0,0.00018387,2]
[362259274,1748122923119,-4233.88313936,0.00018388,2]
[362259275,1748122923140,-1000.0,0.00018388,2]
[362259276,1748122923160,-500.0,0.00018388,2]
[362259277,1748122923182,-150.0,0.00018388,7]
[362259278,1748122923205,-465.7,0.00018388,2]
[362259279,1748122956720,-200.0,0.00018509,2]
[362259280,1748122956743,-609.35,0.00018575,2]
[362259281,1748122956765,-179.68,0.00018597,2]
[362259282,1748122956789,-1943.89,0.00019,2]
[362259283,1748122956811,-1943.89,0.00019,2]
[362259284,1748122956833,-1943.89,0.00019,2]
[362259285,1748122956855,-1943.89,0.00019,2]
[362259286,1748122956876,-1943.89,0.00019,2]
[362259287,1748122956898,-1800.0,0.000191,6]
[362259288,1748122956920,-207.4,0.00019166,2]
[362259289,1748122956941,-1199.20597015,0.00019166,2]
[362259290,1748122956962,-151.0,0.00019166,2]
[362259291,1748122956984,-442.07478099,0.00019177,2]
[362259292,1748122957005,-152.78554428,0.00019177,2]
[362259293,1748122957025,-402.57799781,0.00019178,2]
[362259294,1748122957047,-273.84770568,0.00019178,2]
[362259295,1748122957068,-471.59069997,0.00019178,2]
[362259296,1748122957089,-420.0,0.00019178,2]
[362259297,1748122957112,-521.16382399,0.00019178,2]
[362259298,1748122957134,-420.0,0.00019178,2]
[362259299,1748122957156,-420.0,0.00019178,2]
[362259300,1748122957177,-420.0,0.00019178,2]
[362259301,1748122957199,-199.96973598,0.00019178,2]
[362259302,1748122957223,-420.0,0.00019178,2]
[362259303,1748122957244,-420.0,0.00019178,2]
[362259304,1748122957269,-420.0,0.00019178,2]
[362259305,1748122957305,-420.0,0.00019178,2]
[362259306,1748122957328,-420.0,0.00019178,2]
[362259307,1748122957351,-420.0,0.00019178,2]
[362259308,1748122957373,-420.0,0.00019178,2]
[362259309,1748122957396,-443.05,0.00019178,2]
[362259310,1748122957421,-420.0,0.00019178,2]
[362259311,1748122957445,-420.0,0.00019178,2]
[362259312,1748122957469,-420.0,0.00019178,2]
[362259313,1748122957493,-420.0,0.00019178,2]
[362259314,1748122957515,-420.0,0.00019178,2]
[362259315,1748122957537,-420.0,0.00019178,2]
[362259316,1748122957558,-420.0,0.00019178,2]
[362259317,1748122957580,-420.0,0.00019178,2]
[362259318,1748122957604,-420.0,0.00019178,2]
[362259319,1748122957626,-420.0,0.00019178,2]
[362259320,1748122957648,-420.0,0.00019178,2]
[362259321,1748122957670,-420.0,0.00019178,2]
[362259322,1748122957692,-420.0,0.00019178,2]
[362259323,1748122957718,-420.0,0.00019178,2]
[362259324,1748122957742,-420.0,0.00019178,2]
[362259325,1748122957764,-420.0,0.00019178,2]
[362259326,1748122957795,-420.0,0.00019178,2]
[362259327,1748122957820,-420.0,0.00019178,2]
[362259328,1748122957845,-7169.74,0.00019178,2]
[362259329,1748122957868,-420.0,0.00019178,2]
[362259330,1748122957891,-292.99,0.00019178,2]
[362259331,1748122957915,-420.0,0.00019178,2]
[362259332,1748122957938,-420.0,0.00019178,2]
[362259333,1748122957960,-420.0,0.00019178,2]
[362259334,1748122957983,-420.0,0.00019178,2]
[362259335,1748122958006,-420.0,0.00019178,2]
[362259336,1748122958029,-420.0,0.00019178,2]
[362259337,1748122958052,-420.0,0.00019178,2]
[362259338,1748122958075,-420.0,0.00019178,2]
[362259339,1748122958098,-420.0,0.00019178,2]
[362259340,1748122958121,-420.0,0.00019178,2]
[362259341,1748122958144,-420.0,0.00019178,2]
[362259342,1748122958166,-516.68914576,0.00019178,2]
[362259343,1748122958189,-420.0,0.00019178,2]
[362259344,1748122958212,-420.0,0.00019178,2]
[362259345,1748122958234,-420.0,0.00019178,2]
[362259346,1748122958257,-866.32,0.00019178,2]
[362259347,1748122958280,-420.0,0.00019178,2]
[362259348,1748122958307,-1103.02,0.00019178,2]
[362259349,1748122958331,-420.0,0.00019178,2]
[362259350,1748122958355,-420.0,0.00019178,2]
[362259351,1748122958378,-420.0,0.00019178,2]
[362259352,1748122958403,-451.49,0.00019178,2]
[362259353,1748122958427,-420.0,0.00019178,2]
[362259354,1748122958453,-420.0,0.00019178,2]
[362259355,1748122958476,-420.0,0.00019178,2]
[362259356,1748122958502,-420.0,0.00019178,2]
[362259357,1748122958524,-420.0,0.00019178,2]
[362259358,1748122958795,-420.0,0.00019178,2]
[362259359,1748122958826,-420.0,0.00019178,2]
[362259360,1748122958850,-715.53,0.00019178,2]
[362259361,1748122958874,-806.56,0.00019178,2]
[362259362,1748122958897,-1186.82,0.00019178,2]
[362259363,1748122958920,-417.69459539,0.00019187,2]
[362259364,1748123113416,654.92,0.0001647,2]
[362259366,1748123161977,368.33,0.00013699,2]
[362259368,1748123216127,-344.4123461,0.00018734,2]
[362259373,1748123431845,-200.0,0.00018388,2]
[362259374,1748123431859,-206.0,0.00018648,2]
[362259375,1748123431870,-310.5076539,0.00018734,2]
[362259376,1748123431880,-165.34,0.0001894,2]
[362259377,1748123431890,-226.7385061,0.00019,6]
[362259378,1748123431902,-1473.2614939,0.00019,6]
[362259379,1748123431913,-154.64742573,0.00019077,2]
[362259380,1748123431925,-3400.0,0.000191,6]
[362259381,1748123431936,-1068.0,0.00019159,2]
[362259382,1748123431946,-3938.23566033,0.0001916,2]
[362259383,1748123431955,-420.0,0.00019178,2]
[362259384,1748123431964,-420.0,0.00019178,2]
[362259385,1748123431974,-420.0,0.00019178,2]
[362259386,1748123431986,-420.0,0.00019178,2]
[362259387,1748123431996,-420.0,0.00019178,2]
[362259388,1748123432005,-420.0,0.00019178,2]
[362259389,1748123432015,-1013.14219189,0.00019178,2]
[362259390,1748123432029,-158.82780811,0.00019178,2]
[362259391,1748123432039,-1109.95656053,0.00019178,2]
[362259392,1748123432050,-27.40343947,0.00019178,2]
[362259393,1748123432060,-411.51925872,0.00019178,2]
[362259394,1748123432069,-420.0,0.00019178,2]
[362259395,1748123432079,-420.0,0.00019178,2]
[362259396,1748123432089,-527.49,0.00019178,2]
[362259397,1748123432098,-420.0,0.00019178,2]
[362259398,1748123432107,-420.0,0.00019178,2]
[362259399,1748123432117,-13251.48,0.00019178,2]
[362259400,1748123432126,-420.0,0.00019178,2]
[362259401,1748123432136,-420.0,0.00019178,2]
[362259402,1748123432147,-420.0,0.00019178,2]
[362259403,1748123432158,-420.0,0.00019178,2]
[362259404,1748123432167,-420.0,0.00019178,2]
[362259405,1748123432176,-420.0,0.00019178,2]
[362259406,1748123432187,-420.0,0.00019178,2]
[362259407,1748123432196,-420.0,0.00019178,2]
[362259408,1748123432206,-420.0,0.00019178,2]
[362259409,1748123432216,-420.0,0.00019178,2]
[362259410,1748123432226,-420.0,0.00019178,2]
[362259411,1748123432235,-152.925138,0.00019178,2]
[362259412,1748123432245,-420.0,0.00019178,2]
[362259413,1748123432255,-420.0,0.00019178,2]
[362259414,1748123432264,-420.0,0.00019178,2]
[362259415,1748123432274,-420.0,0.00019178,2]
[362259416,1748123432284,-420.0,0.00019178,2]
[362259417,1748123432295,-420.0,0.00019178,2]
[362259418,1748123432305,-434.69,0.00019178,2]
[362259419,1748123432315,-420.0,0.00019178,2]
[362259420,1748123432324,-420.0,0.00019178,2]
[362259421,1748123432333,-420.0,0.00019178,2]
[362259422,1748123432343,-534.66438418,0.00019178,2]
[362259423,1748123432352,-437.62,0.00019178,2]
[362259424,1748123432362,-420.0,0.00019178,2]
[362259425,1748123432371,-420.0,0.00019178,2]
[362259426,1748123432380,-222.15415775,0.00019178,2]
[362259427,1748123432389,-420.0,0.00019178,2]
[362259428,1748123432399,-420.0,0.00019178,2]
[362259429,1748123432409,-420.0,0.00019178,2]
[362259430,1748123432420,-420.0,0.00019178,2]
[362259431,1748123432430,-420.0,0.00019178,2]
[362259432,1748123432440,-420.0,0.00019178,2]
[362259433,1748123432450,-420.0,0.00019178,2]
[362259434,1748123432460,-420.0,0.00019178,2]
[362259435,1748123432470,-420.0,0.00019178,2]
[362259436,1748123432480,-420.0,0.00019178,2]
[362259437,1748123432490,-158.95133262,0.00019178,2]
[362259438,1748123432500,-420.0,0.00019178,2]
[362259439,1748123432510,-420.0,0.00019178,2]
[362259440,1748123432519,-420.0,0.00019178,2]
[362259441,1748123432529,-420.0,0.00019178,2]
[362259442,1748123432539,-420.0,0.00019178,2]
[362259443,1748123432548,-989.98,0.00019178,2]
[362259444,1748123432557,-420.0,0.00019178,2]
[362259445,1748123432567,-420.0,0.00019178,2]
[362259446,1748123432577,-459.39,0.00019178,2]
[362259447,1748123432588,-420.0,0.00019178,2]
[362259448,1748123432597,-420.0,0.00019178,2]
[362259449,1748123432607,-420.0,0.00019178,2]
[362259450,1748123432616,-448.5,0.00019178,2]
[362259451,1748123432625,-248.14,0.00019178,2]
[362259452,1748123432635,-420.0,0.00019178,2]
[362259453,1748123432644,-420.0,0.00019178,2]
[362259454,1748123432654,-1834.9,0.00019178,2]
[362259455,1748123432663,-420.0,0.00019178,2]
[362259456,1748123432674,-956.26,0.00019178,2]
[362259457,1748123432684,-420.0,0.00019178,2]
[362259458,1748123432693,-420.0,0.00019178,2]
[362259459,1748123432703,-746.94,0.00019178,2]
[362259460,1748123432713,-420.0,0.00019178,2]
[362259461,1748123432723,-420.0,0.00019178,2]
[362259462,1748123432734,-282.6279531,0.00019178,2]
[362259463,1748123432744,-199.89765069,0.00019178,2]
[362259464,1748123432755,-420.0,0.00019178,2]
[362259465,1748123432765,-420.0,0.00019178,2]
[362259466,1748123432774,-420.0,0.00019178,2]
[362259467,1748123432785,-420.0,0.00019178,2]
[362259468,1748123432795,-420.0,0.00019178,2]
[362259469,1748123432805,-420.0,0.00019178,2]
[362259470,1748123432816,-1078.35,0.00019178,2]
[362259471,1748123432826,-420.0,0.00019178,2]
[362259472,1748123432837,-420.0,0.00019178,2]
[362259473,1748123432847,-207.4,0.00019193,2]
[362259474,1748123432859,-1000.0,0.00019194,2]
[362259475,1748123432869,-8088.39605942,0.00019195,2]
[362259476,1748123432880,-518.86696059,0.00019199,2]
[362259477,1748123432890,-5200.0,0.000192,7]
[362259478,1748123432899,-420.0,0.00019205,2]
[362259479,1748123432909,-420.0,0.00019205,2]
[362259480,1748123432919,-420.0,0.00019205,2]
[362259481,1748123432930,-420.0,0.00019205,2]
[362259482,1748123432940,-1171.97,0.00019205,2]
[362259483,1748123432950,-1137.36,0.00019205,2]
[362259484,1748123432960,-420.0,0.00019205,2]
[362259485,1748123432970,-420.0,0.00019205,2]
[362259486,1748123432979,-527.49,0.00019205,2]
[362259487,1748123432989,-420.0,0.00019205,2]
[362259488,1748123432998,-13251.48,0.00019205,2]
[362259489,1748123433009,-420.0,0.00019205,2]
[362259490,1748123433018,-420.0,0.00019205,2]
[362259491,1748123433028,-420.0,0.00019205,2]
[362259492,1748123433038,-420.0,0.00019205,2]
[362259493,1748123433048,-420.0,0.00019205,2]
[362259494,1748123433057,-420.0,0.00019205,2]
[362259495,1748123433067,-420.0,0.00019205,2]
[362259496,1748123433077,-420.0,0.00019205,2]
[362259497,1748123433087,-420.0,0.00019205,2]
[362259498,1748123433096,-420.0,0.00019205,2]
[362259499,1748123433106,-406.36338375,0.00019205,2]
[362259500,1748123433116,-420.0,0.00019205,2]
[362259501,1748123433125,-420.0,0.00019205,2]
[362259502,1748123433135,-420.0,0.00019205,2]
[362259503,1748123433144,-434.69,0.00019205,2]
[362259504,1748123433154,-126.35555105,0.00019205,2]
[362259505,1748123433194,-293.64444895,0.00019205,2]
[362259506,1748123433204,-420.0,0.00019205,2]
[362259507,1748123433216,-420.0,0.00019205,2]
[362259508,1748123433227,-214.78,0.00019205,2]
[362259509,1748123433237,-420.0,0.00019205,2]
[362259510,1748123433248,-420.0,0.00019205,2]
[362259511,1748123433258,-420.0,0.00019205,2]
[362259512,1748123433268,-420.0,0.00019205,2]
[362259513,1748123433277,-420.0,0.00019205,2]
[362259514,1748123433287,-282.43487055,0.00019205,2]
[362259515,1748123433304,-137.56512945,0.00019205,2]
[362259516,1748123433313,-420.0,0.00019205,2]
[362259517,1748123433323,-420.0,0.00019205,2]
[362259518,1748123433332,-989.98,0.00019205,2]
[362259519,1748123433342,-420.0,0.00019205,2]
[362259520,1748123433351,-459.39,0.00019205,2]
[362259521,1748123433362,-561.23,0.00019205,2]
[362259522,1748123433371,-420.0,0.00019205,2]
[362259523,1748123433381,-420.0,0.00019205,2]
[362259524,1748123433391,-448.5,0.00019205,2]
[362259525,1748123433400,-420.0,0.00019205,2]
[362259526,1748123433410,-1834.9,0.00019205,2]
[362259527,1748123433420,-956.26,0.00019205,2]
[362259528,1748123433430,-420.0,0.00019205,2]
[362259529,1748123433440,-420.0,0.00019205,2]
[362259530,1748123433449,-746.94,0.00019205,2]
[362259531,1748123433459,-420.0,0.00019205,2]
[362259532,1748123433468,-420.0,0.00019205,2]
[362259533,1748123433478,-420.0,0.00019205,2]
[362259534,1748123433488,-420.0,0.00019205,2]
[362259535,1748123433498,-1078.35,0.00019205,2]
[362259536,1748123433507,-420.0,0.00019205,2]
[362259537,1748123433517,-313.41795006,0.00019232,2]
[362259538,1748123433527,-420.0,0.00019232,2]
[362259539,1748123433536,-420.0,0.00019232,2]
[362259540,1748123433546,-1171.97,0.00019232,2]
[362259541,1748123433555,-1137.36,0.00019232,2]
[362259542,1748123433565,-420.0,0.00019232,2]
[362259543,1748123433575,-420.0,0.00019232,2]
[362259544,1748123433584,-527.49,0.00019232,2]
[362259545,1748123433593,-420.0,0.00019232,2]
[362259546,1748123433603,-13251.48,0.00019232,2]
[362259547,1748123433612,-420.0,0.00019232,2]
[362259548,1748123433622,-420.0,0.00019232,2]
[362259549,1748123433632,-420.0,0.00019232,2]
[362259550,1748123433641,-420.0,0.00019232,2]
[362259551,1748123433652,-420.0,0.00019232,2]
[362259552,1748123433662,-420.0,0.00019232,2]
[362259553,1748123433671,-420.0,0.00019232,2]
[362259554,1748123433682,-153.03714386,0.00019232,2]
[362259555,1748123433691,-420.0,0.00019232,2]
[362259556,1748123433701,-420.0,0.00019232,2]
[362259557,1748123433710,-420.0,0.00019232,2]
[362259558,1748123433720,-277.89,0.00019232,2]
[362259559,1748123433729,-434.69,0.00019232,2]
[362259560,1748123433739,-420.0,0.00019232,2]
[362259561,1748123433749,-420.0,0.00019232,2]
[362259562,1748123433758,-420.0,0.00019232,2]
[362259563,1748123433768,-420.0,0.00019232,2]
[362259564,1748123433777,-420.0,0.00019232,2]
[362259565,1748123433787,-420.0,0.00019232,2]
[362259566,1748123433796,-420.0,0.00019232,2]
[362259567,1748123433807,-420.0,0.00019232,2]
[362259568,1748123433817,-989.98,0.00019232,2]
[362259569,1748123433827,-420.0,0.00019232,2]
[362259570,1748123433837,-459.39,0.00019232,2]
[362259571,1748123433848,-420.0,0.00019232,2]
[362259572,1748123433860,-448.5,0.00019232,2]
[362259573,1748123433870,-1834.9,0.00019232,2]
[362259574,1748123433883,-956.26,0.00019232,2]
[362259575,1748123433893,-420.0,0.00019232,2]
[362259576,1748123433903,-420.0,0.00019232,2]
[362259577,1748123433913,-746.94,0.00019232,2]
[362259578,1748123433923,-420.0,0.00019232,2]
[362259579,1748123433934,-420.0,0.00019232,2]
[362259580,1748123433944,-420.0,0.00019232,2]
[362259581,1748123433953,-1078.35,0.00019232,2]
[362259582,1748123433963,-420.0,0.00019232,2]
[362259583,1748123433973,-3938.23566026,0.00019242,2]
[362259584,1748123433983,-420.0,0.0001926,2]
[362259585,1748123433993,-420.0,0.0001926,2]
[362259586,1748123434003,-1171.97,0.0001926,2]
[362259587,1748123434013,-1137.36,0.0001926,2]
[362259588,1748123434023,-420.0,0.0001926,2]
[362259589,1748123434033,-420.0,0.0001926,2]
[362259590,1748123434043,-527.49,0.0001926,2]
[362259591,1748123434052,-420.0,0.0001926,2]
[362259592,1748123434061,-13251.48,0.0001926,2]
[362259593,1748123434071,-420.0,0.0001926,2]
[362259594,1748123434080,-420.0,0.0001926,2]
[362259595,1748123434090,-420.0,0.0001926,2]
[362259596,1748123434099,-420.0,0.0001926,2]
[362259597,1748123434109,-420.0,0.0001926,2]
[362259598,1748123434119,-420.0,0.0001926,2]
[362259599,1748123434129,-420.0,0.0001926,2]
[362259600,1748123434138,-420.0,0.0001926,2]
[362259601,1748123434148,-420.0,0.0001926,2]
[362259602,1748123434158,-434.69,0.0001926,2]
[362259603,1748123434167,-420.0,0.0001926,2]
[362259604,1748123434177,-420.0,0.0001926,2]
[362259605,1748123434187,-420.0,0.0001926,2]
[362259606,1748123434198,-420.0,0.0001926,2]
[362259607,1748123434207,-420.0,0.0001926,2]
[362259608,1748123434217,-420.0,0.0001926,2]
[362259609,1748123434227,-420.0,0.0001926,2]
[362259610,1748123434237,-420.0,0.0001926,2]
[362259611,1748123434247,-989.98,0.0001926,2]
[362259612,1748123434256,-420.0,0.0001926,2]
[362259613,1748123434266,-459.39,0.0001926,2]
[362259614,1748123434282,-420.0,0.0001926,2]
[362259615,1748123434292,-448.5,0.0001926,2]
[362259616,1748123434302,-1834.9,0.0001926,2]
[362259617,1748123434311,-956.26,0.0001926,2]
[362259618,1748123434321,-420.0,0.0001926,2]
[362259619,1748123434330,-420.0,0.0001926,2]
[362259620,1748123434341,-746.94,0.0001926,2]
[362259621,1748123434353,-420.0,0.0001926,2]
[362259622,1748123434363,-420.0,0.0001926,2]
[362259623,1748123434372,-1078.35,0.0001926,2]
[362259624,1748123434382,-420.0,0.0001926,2]
[362259625,1748123434391,-500.0,0.00019273,2]
[362259626,1748123434401,-584.27456482,0.00019273,2]
[362259627,1748123434411,-500.0,0.00019273,2]
[362259628,1748123434421,-500.0,0.00019273,2]
[362259629,1748123434431,-500.0,0.00019273,2]
[362259630,1748123434440,-23247.29388668,0.00019277,2]
[362259631,1748123434451,-186.40617139,0.00019286,2]
[362259632,1748123434460,-213.05314502,0.00019286,2]
[362259633,1748123434470,-181.29261115,0.00019286,2]
[362259634,1748123434480,-194.34795666,0.00019286,2]
[362259635,1748123434490,-607.51225522,0.00019286,2]
[362259636,1748123434500,-420.0,0.00019287,2]
[362259637,1748123434510,-420.0,0.00019287,2]
[362259638,1748123434520,-1171.97,0.00019287,2]
[362259639,1748123434529,-1137.36,0.00019287,2]
[362259640,1748123434539,-420.0,0.00019287,2]
[362259641,1748123434549,-420.0,0.00019287,2]
[362259642,1748123434559,-527.49,0.00019287,2]
[362259643,1748123434568,-420.0,0.00019287,2]
[362259644,1748123434577,-13251.48,0.00019287,2]
[362259645,1748123434587,-420.0,0.00019287,2]
[362259646,1748123434597,-561.6,0.00019287,2]
[362259647,1748123434606,-420.0,0.00019287,2]
[362259648,1748123434616,-420.0,0.00019287,2]
[362259649,1748123434625,-420.0,0.00019287,2]
[362259650,1748123434635,-420.0,0.00019287,2]
[362259651,1748123434644,-420.0,0.00019287,2]
[362259652,1748123434653,-420.0,0.00019287,2]
[362259653,1748123434663,-420.0,0.00019287,2]
[362259654,1748123434672,-434.69,0.00019287,2]
[362259655,1748123434682,-420.0,0.00019287,2]
[362259656,1748123434691,-420.0,0.00019287,2]
[362259657,1748123434701,-420.0,0.00019287,2]
[362259658,1748123434711,-381.21348057,0.00019287,2]
[362259659,1748123434720,-420.0,0.00019287,2]
[362259660,1748123434729,-420.0,0.00019287,2]
[362259661,1748123434739,-420.0,0.00019287,2]
[362259662,1748123434748,-420.0,0.00019287,2]
[362259663,1748123434757,-989.98,0.00019287,2]
[362259664,1748123434766,-420.0,0.00019287,2]
[362259665,1748123434776,-459.39,0.00019287,2]
[362259666,1748123434786,-420.0,0.00019287,2]
[362259667,1748123434796,-448.5,0.00019287,2]
[362259668,1748123434805,-1834.9,0.00019287,2]
[362259669,1748123434815,-956.26,0.00019287,2]
[362259670,1748123434824,-420.0,0.00019287,2]
[362259671,1748123434835,-420.0,0.00019287,2]
[362259672,1748123434844,-746.94,0.00019287,2]
[362259673,1748123434857,-307.56,0.00019287,2]
[362259674,1748123434868,-420.0,0.00019287,2]
[362259675,1748123434878,-1078.35,0.00019287,2]
[362259676,1748123434888,-420.0,0.00019287,2]
[362259677,1748123434899,-1407.56317691,0.00019291,2]
[362259678,1748123434910,-6900.0,0.000193,7]
[362259679,1748123434920,-420.0,0.00019315,2]
[362259680,1748123434930,-1171.97,0.00019315,2]
[362259681,1748123434940,-1137.36,0.00019315,2]
[362259682,1748123434949,-420.0,0.00019315,2]
[362259683,1748123434959,-420.0,0.00019315,2]
[362259684,1748123434970,-527.49,0.00019315,2]
[362259685,1748123434980,-420.0,0.00019315,2]
[362259686,1748123434989,-13251.48,0.00019315,2]
[362259687,1748123434999,-420.0,0.00019315,2]
[362259688,1748123435008,-420.0,0.00019315,2]
[362259689,1748123435018,-420.0,0.00019315,2]
[362259690,1748123435039,-434.01534992,0.00019315,2]
[362259691,1748123435049,-420.0,0.00019315,2]
[362259692,1748123435059,-420.0,0.00019315,2]
[362259693,1748123435068,-557.03494792,0.00019315,2]
[362259694,1748123435078,-420.0,0.00019315,2]
[362259695,1748123435088,-434.69,0.00019315,2]
[362259696,1748123435098,-420.0,0.00019315,2]
[362259697,1748123435108,-420.0,0.00019315,2]
[362259698,1748123435118,-420.0,0.00019315,2]
[362259699,1748123435128,-420.0,0.00019315,2]
[362259700,1748123435138,-420.0,0.00019315,2]
[362259701,1748123435147,-420.0,0.00019315,2]
[362259702,1748123435158,-420.0,0.00019315,2]
[362259703,1748123435168,-989.98,0.00019315,2]